[Event "ESP-ch Teams Honor 2024"]
[Site "Melilla"]
[Date "2024.10.13"]
[Round "2.4"]
[White "Korneev, Oleg"]
[Black "Del Rio De Angelis, Salvador G."]
[Result "1/2-1/2"]
[ECO "B01"]
[WhiteElo "2454"]
[BlackElo "2387"]
[Annotator "TA"]
[PlyCount "69"]
[EventDate "2024.10.11"]
[EventType "team-tourn"]
[EventCountry "ESP"]
[SourceTitle "playchess.com"]
[Source "ChessBase"]
[SourceQuality "1"]
[WhiteTeam "Solvay"]
[BlackTeam "Sestao"]
[TimeControl "5400+30"]

{[%evp 11,69,42,46,61,94,66,68,64,84,72,60,35,41,31,58,26,30,25,38,37,41,33,44,33,58,34,46,48,48,51,42,63,74,69,58,51,65,46,79,53,105,98,131,138,148,118,112,119,110,114,115,62,82,55,119,56,92,0,51,32]} 1. e4 {[%emt 0:00:01]} d5 {[%emt 0:00:19]} 2. exd5 {[%emt 0:00:07]} Qxd5 {[%emt 0:00:09]} 3. Nc3 {[%emt 0:00:11]} Qa5 {[%emt 0:00:14]} 4. d4 {[%emt 0:00:10]} Nf6 {[%emt 0:00:15]} 5. Nf3 {[%emt 0:00:02]} c6 {[%emt 0:00:19]} 6. Bd2 {[%emt 0:00:06]} Bf5 {[%emt 0:00:22] [#]} 7. Ne4 $1 {[%emt 0:00:18] B01: Scandinavische Verdediging.} Qd5 {[%emt 0:00:28] Onnauwkeurig} (7... Qb6 8. Nxf6+) 8. Nxf6+ {[%emt 0:05:54]} exf6 {[%emt 0:00:08]} 9. c4 {[%emt 0:18:44]} Qd7 $146 {[%emt 0:02:25]} ({Predecessor:} 9... Qe6+ 10. Be3 Bb4+ 11. Nd2 O-O 12. a3 Ba5 13. b4 Bc7 14. Nb3 Nd7 15. Bd3 Bg4 {1-0 Korneev,V-Sharafutdinova,S Lipetsk Region-ch op 2008 (4)}) 10. Bc3 {[%emt 0:02:06] OK} Be7 {[%emt 0:11:41]} 11. Bd3 {[%emt 0:00:39]} Bxd3 {[%emt 0:06:32] OK} 12. Qxd3 {[%emt 0:00:04]} Qe6+ {[%emt 0:00:10] Onnauwkeurig} 13. Kd2 {[%emt 0:09:18] Hoopt vervolgens op Nh4. Onnauwkeurig} O-O {[%emt 0:00:18]} 14. Rhe1 {[%emt 0:00:05] OK} Qd7 {[%emt 0:00:08] OK} 15. Ke2 {[%emt 0:06:07] OK} Na6 {[%emt 0:11:19]} 16. Kf1 {[%emt 0:00:26] OK} Rfd8 {[%emt 0:04:55]} 17. Rad1 {[%emt 0:02:59]} Nc7 {[%emt 0:00:47] OK} 18. b3 {[%emt 0:04:16]} Bf8 {[%emt 0:01:48]} 19. h3 {[%emt 0:01:41]} Qd6 {[%emt 0:02:15]} 20. a4 {[%emt 0:06:23]} Re8 {[%emt 0:02:35] OK} 21. g3 {[%emt 0:04:39] OK} b6 {[%emt 0:04:58] OK} 22. Kg2 {[%emt 0:00:15] OK} a6 {[%emt 0:00:31]} 23. Rxe8 {[%emt 0:01:50]} Rxe8 {[%emt 0:00:07]} 24. Bd2 {[%emt 0:00:29][%cal Od4d5,Bc3d2,Bd2f4,Bf4e3][%mdl 32] EV=16.45} Qd7 {[%emt 0:03:04] Onnauwkeurig} 25. Bf4 {[%emt 0:00:21] Onnauwkeurig} Bd6 {[%emt 0:01:19] Fout (0.5)} (25... Ne6 $14) 26. Be3 $16 {[%emt 0:18:18] Dreigt te winnen met c5. OK} Rd8 {[%emt 0:14:27] Onnauwkeurig} 27. d5 {[%emt 0:05:04] Tegen Ne6. En nu zou dxc6 winnen. OK} c5 {[%emt 0:00:06] OK} 28. Qd2 {[%emt 0:01:52]} a5 {[%emt 0:07:30] OK} 29. Bf4 {[%emt 0:00:38]} (29. Ng1 $5 {is scherper.} Qf5 30. Ne2 h5 31. f3) 29... Re8 {[%emt 0:04:15] OK} 30. Bxd6 {[%emt 0:00:58] OK} Qxd6 {[%emt 0:00:07]} 31. Re1 {[%emt 0:00:09] Fout (0.5)} (31. Ng1 $16) 31... Kf8 $14 {[%emt 0:01:50] OK} 32. Re3 {[%emt 0:04:21] Onnauwkeurig} {Zwart zou moeten spelen} g6 {[%emt 0:02:00] Fout (0.6)} (32... Rxe3 $14 33. Qxe3 g6) {Wit zou moeten spelen} 33. Qe2 {[%emt 0:00:21] Fout (0.6)} (33. g4 $16) 33... h5 {[%emt 0:01:19] OK} {Beter is} 34. h4 {[%emt 0:02:33] Fout (0.9)} (34. Nd2 $16) {Zwart kan overwegen om te spelen.} 34... Re7 {[%emt 0:01:11] Fout (0.5)} (34... Rxe3 $11 35. Qxe3 Ne8) 35. Nd2 {[%emt 0:03:42] Blunder waarde: Wit=0.16 (erg precies) /Zwart=0.14 (erg precies) . OK.  Fout:        	Wit=3      	Zwart=3      Onnauwkeurig:    	Wit=3      	Zwart=4      OK:         	Wit=10     	Zwart=10} 1/2-1/2

[Event "ESP-ch Teams Honor 2024"]
[Site "Melilla"]
[Date "2024.10.13"]
[Round "2.5"]
[White "Trigo Urquijo, Sergio"]
[Black "Javakhishvili, Lela"]
[Result "0-1"]
[ECO "E48"]
[WhiteElo "2384"]
[BlackElo "2425"]
[Annotator "TA"]
[PlyCount "62"]
[EventDate "2024.10.11"]
[EventType "team-tourn"]
[EventCountry "ESP"]
[SourceTitle "playchess.com"]
[Source "ChessBase"]
[SourceQuality "1"]
[WhiteTeam "Sestao"]
[BlackTeam "Solvay"]
[TimeControl "5400+30"]

{[%evp 16,62,20,10,11,0,15,2,-9,6,13,-6,0,-52,-27,-49,-33,-42,-35,-30,0,-22,-13,-69,-58,-148,-136,-151,-113,-135,-78,-138,-125,-243,-207,-248,-234,-355,-338,-521,-526,-531,-518,-507,-511,-709,-301,-610,-620]} 1. d4 {[%emt 0:00:14]} Nf6 {[%emt 0:00:06]} 2. c4 {[%emt 0:00:37]} e6 {[%emt 0:00:07]} 3. Nc3 {[%emt 0:00:46]} Bb4 {[%emt 0:00:30]} 4. e3 {[%emt 0:00:52]} O-O {[%emt 0:00:23]} 5. Bd3 {[%emt 0:00:46]} d5 {[%emt 0:00:06]} 6. a3 {[%emt 0:00:26]} Be7 {[%emt 0:00:31]} 7. Nf3 {[%emt 0:02:12]} dxc4 {[%emt 0:00:47]} 8. Bxc4 {[%emt 0:00:10]} c5 {[%emt 0:00:13]} 9. O-O {[%emt 0:05:12]} a6 {[%emt 0:00:22] E51: Nimzo-Indisch: Rubinstein: 4...0-0 5 Pf3 d5.} 10. dxc5 {[%emt 0:07:40] OK} Bxc5 {[%emt 0:00:21]} 11. b4 {[%emt 0:06:26] 11.Qe2 verdient nadere bestudering.} Be7 {[%emt 0:00:31] OK. De stelling is in evenwicht.} 12. Qe2 {[%emt 0:04:07]} b5 {[%emt 0:00:45]} 13. Bb3 {[%emt 0:01:20]} Bb7 {[%emt 0:08:26] OK} 14. e4 {[%emt 0:05:36] Fout (0.5)} (14. Bb2 $11) 14... Qc7 $15 {[%emt 0:10:09] OK} 15. Bd2 {[%emt 0:04:52]} Nbd7 $146 {[%emt 0:07:26]} ({Predecessor:} 15... Rd8 16. Rac1 Qd7 17. Rfd1 Qe8 18. e5 Nd5 19. Ne4 Nd7 20. Bg5 Bxg5 21. Nd6 Qe7 22. Nxg5 Qxg5 23. Nxb7 {½-½ Baumbach,F (2228)-Ditmas,H (1974) GER-chT Seniors 25th 2016 (1.23)}) 16. Rac1 {[%emt 0:02:16][%cal Rc3b5] OK} Qb8 {[%emt 0:09:27] Beste (Gemakkelijk)} 17. Rfe1 {[%emt 0:02:03]} Rd8 {[%emt 0:01:48] OK} 18. Bg5 {[%emt 0:10:33] OK} Ne5 {[%emt 0:01:32] OK} {Wit zou moeten proberen} 19. Nxe5 {[%emt 0:11:45] Fout (0.6)} (19. Bf4 $11 Bd6 20. Nxe5 Bxe5 21. Bxe5 Qxe5 22. f3) 19... Qxe5 {[%emt 0:00:07]} 20. f4 {[%emt 0:00:19] Fout (0.9)} (20. Qe3 $1 $15) 20... Qd4+ $17 {[%emt 0:00:34] Beste (Gemakkelijk)} 21. Qe3 {[%emt 0:00:29] OK} Qxe3+ {[%emt 0:04:58] OK} (21... Bxe4 $2 22. Nxe4 Rd7 23. Qxd4 Rxd4 24. Bxf6 Bxf6 25. Nxf6+ gxf6 26. f5 $18) 22. Rxe3 {[%emt 0:00:07]} {Zwart zou moeten proberen} h6 {[%emt 0:04:29] Fout (0.6)} (22... Rd2 {Dreigt te winnen met ...h6.} 23. Rc2 Rxc2 24. Bxc2 Rc8) {Beter is} 23. Bh4 {[%emt 0:01:30] Fout (0.6)} (23. Bxf6 Bxf6 (23... gxf6 24. a4 $17) 24. e5) 23... Rd7 {[%emt 0:03:47]} 24. Be1 {[%emt 0:07:01] [#] was nodig. Fout (1.2)} (24. Rh3 $17) 24... Bd8 $1 $19 {[%emt 0:02:31] Hoopt vervolgens op ...Bb6. OK} 25. Re2 {[%emt 0:00:54]} Rc8 {[%emt 0:01:15] OK} 26. e5 {[%emt 0:06:07] gaat door met vechten. Fout (1.2)} (26. Rec2) 26... Bb6+ {[%emt 0:09:39] Beste} 27. Bf2 {[%emt 0:01:06] Zou voordelig kunnen zijn. Fout (1.8)} (27. Kf1 Ng4 28. Bd2) 27... Bxf2+ {[%emt 0:00:11] OK} 28. Kxf2 {[%emt 0:07:40]} Ng4+ {[%emt 0:04:30] OK} 29. Kg3 {[%emt 0:01:48] OK} h5 {[%emt 0:00:26] OK} ({Minder sterk is} 29... Nxe5 30. Rxe5 (30. fxe5 $2 {slaat de verkeerde figuur.} Rd3+ 31. Kf2 Rdxc3 $19) 30... Rd3+ 31. Kf2 Rdxc3 (31... Rcxc3 32. Rxc3 Rxc3 33. Re3 $17) 32. Rxc3 Rxc3 33. Re3 $17) 30. Rec2 {[%emt 0:03:38][%cal Oc3e4] Onnauwkeurig} Rd3+ {[%emt 0:04:29]} 31. Kh4 {[%emt 0:00:08][%cal Oc3b5] Onnauwkeurig} Ne3 {[%emt 0:00:15] Blunder waarde: Wit=0.49/Zwart=0.22 (precies) .  Fout:        	Wit=7      	Zwart=1      Onnauwkeurig:    	Wit=2      	---        OK:         	Wit=5      	Zwart=11     Beste:        	---       	Zwart=3} (31... Nxh2 32. Nxb5 Rxc2 33. Bxc2 $11) 0-1

[Event "ESP-ch Teams Honor 2024"]
[Site "Melilla"]
[Date "2024.10.13"]
[Round "2.6"]
[White "Tejedor Fuente, Enrique"]
[Black "Ambartsumova, Karina"]
[Result "1/2-1/2"]
[ECO "C88"]
[WhiteElo "2400"]
[BlackElo "2402"]
[Annotator "RC"]
[PlyCount "164"]
[EventDate "2024.10.11"]
[EventType "team-tourn"]
[EventCountry "ESP"]
[SourceTitle "playchess.com"]
[Source "ChessBase"]
[SourceQuality "1"]
[WhiteTeam "Solvay"]
[BlackTeam "Sestao"]
[TimeControl "5400+30"]

1. e4 {[%emt 0:00:01]} e5 {[%emt 0:00:23]} 2. Nf3 {[%emt 0:00:02]} Nc6 {[%emt 0:00:33]} 3. Bb5 {[%emt 0:00:02]} a6 {[%emt 0:00:53]} 4. Ba4 {[%emt 0:00:09]} Nf6 {[%emt 0:00:29]} 5. O-O {[%emt 0:01:49]} Be7 {[%emt 0:02:22]} 6. Re1 {[%emt 0:00:32]} b5 {[%emt 0:00:44]} 7. Bb3 {[%emt 0:00:01]} O-O {[%emt 0:00:51]} 8. h3 {[%emt 0:00:45]} Bb7 {[%emt 0:01:23]} 9. d3 {[%emt 0:00:38]} d5 {[%emt 0:02:10]} 10. exd5 {[%emt 0:01:15]} Nxd5 {[%emt 0:02:28]} 11. Nc3 {[%emt 0:07:15]} Nxc3 {[%emt 0:04:17]} 12. bxc3 {[%emt 0:00:07]} Bf6 {[%emt 0:05:42]} 13. Nd2 {[%emt 0:01:34]} Na5 {[%emt 0:03:13]} 14. Ba3 {[%emt 0:05:08]} Re8 {[%emt 0:07:13]} 15. Ne4 {[%emt 0:07:05]} Be7 {[%emt 0:13:44]} 16. Qh5 {[%emt 0:07:55]} Nxb3 {[%emt 0:07:31]} 17. Bxe7 {[%emt 0:06:33]} Qxe7 {[%emt 0:02:58]} 18. axb3 {[%emt 0:00:07]} a5 {[%emt 0:07:20]} 19. d4 {[%emt 0:02:49]} f6 {[%emt 0:09:15]} 20. dxe5 {[%emt 0:27:32]} fxe5 {[%emt 0:00:55]} 21. Ng5 {[%emt 0:00:01]} h6 {[%emt 0:05:27]} 22. Nf3 {[%emt 0:01:59]} Bxf3 {[%emt 0:00:28]} 23. Qxf3 {[%emt 0:00:09]} e4 {[%emt 0:00:11]} 24. Qe2 {[%emt 0:01:39]} Qc5 {[%emt 0:00:52]} 25. Qe3 {[%emt 0:06:08]} Qxe3 {[%emt 0:02:58]} 26. Rxe3 {[%emt 0:00:03]} a4 {[%emt 0:00:35]} 27. c4 {[%emt 0:00:37]} c6 {[%emt 0:07:24]} 28. cxb5 {[%emt 0:11:58]} cxb5 {[%emt 0:00:11]} 29. bxa4 {[%emt 0:00:17]} bxa4 {[%emt 0:01:51]} 30. Rea3 {[%emt 0:00:19]} Rec8 {[%emt 0:00:59]} 31. Rxa4 {[%emt 0:00:15]} Rxa4 {[%emt 0:00:05]} 32. Rxa4 {[%emt 0:00:06]} Rxc2 {[%emt 0:00:09]} 33. Rxe4 {[%emt 0:00:06]} Kf7 {[%emt 0:01:26]} 34. Rf4+ {[%emt 0:00:46]} Kg6 {[%emt 0:00:27]} 35. Kh2 {[%emt 0:03:10]} Rc3 {[%emt 0:01:26]} 36. Rg4+ {[%emt 0:00:15]} Kf6 {[%emt 0:00:14]} 37. Rg3 {[%emt 0:00:07]} Rc2 {[%emt 0:00:17]} 38. Rf3+ {[%emt 0:00:06]} Kg6 {[%emt 0:00:09]} 39. Kg3 {[%emt 0:00:02]} Ra2 {[%emt 0:01:42]} 40. Rb3 {[%emt 0:00:14]} Kf6 {[%emt 0:00:43]} 41. Rb8 {[%emt 0:00:25]} Ra3+ {[%emt 0:00:22]} 42. f3 {[%emt 0:00:55]} Ra2 {[%emt 0:00:17]} 43. Rf8+ {[%emt 0:01:09]} Ke7 {[%emt 0:01:28]} 44. Rf4 {[%emt 0:00:07]} Rb2 {[%emt 0:00:21]} 45. h4 {[%emt 0:00:59]} h5 {[%emt 0:03:26]} 46. Kh3 {[%emt 0:00:43]} g6 {[%emt 0:01:22]} 47. Ra4 {[%emt 0:02:36]} Kf6 {[%emt 0:00:21]} 48. Ra5 {[%emt 0:00:15]} Rf2 {[%emt 0:00:27]} 49. Rg5 {[%emt 0:01:49]} Rf1 {[%emt 0:00:54]} 50. Ra5 {[%emt 0:00:18]} Rf2 {[%emt 0:00:17]} 51. Kg3 {[%emt 0:00:13]} Rb2 {[%emt 0:00:06]} 52. Ra6+ {[%emt 0:00:15]} Kf7 {[%emt 0:00:37]} 53. Ra5 {[%emt 0:00:35]} Kf6 {[%emt 0:00:07]} 54. Rc5 {[%emt 0:00:09]} Ra2 {[%emt 0:00:08]} 55. Rc6+ {[%emt 0:00:27]} Kf7 {[%emt 0:00:04]} 56. Rb6 {[%emt 0:00:13]} Rc2 {[%emt 0:00:07]} 57. Kh3 {[%emt 0:00:13]} Rf2 {[%emt 0:00:08]} 58. Rb3 {[%emt 0:00:27]} Kf6 {[%emt 0:00:46]} 59. g3 {[%emt 0:00:27]} Kf7 {[%emt 0:00:29]} 60. Ra3 {[%emt 0:01:12]} Kf6 {[%emt 0:00:08]} 61. Rb3 {[%emt 0:01:45]} Kg7 {[%emt 0:00:40]} 62. g4 {[%emt 0:03:16]} hxg4+ {[%emt 0:00:08]} 63. Kxg4 {[%emt 0:01:18]} Rg2+ {[%emt 0:00:39]} 64. Kf4 {[%emt 0:00:44]} Rh2 {[%emt 0:00:15]} 65. Rb7+ {[%emt 0:00:18]} Kh6 {[%emt 0:00:37]} 66. Kg4 {[%emt 0:00:13]} Rg2+ {[%emt 0:00:10]} 67. Kh3 {[%emt 0:00:01]} Rg1 {[%emt 0:00:29]} 68. Rb4 {[%emt 0:00:36]} Kh5 {[%emt 0:02:30]} 69. Rb8 {[%emt 0:00:41]} Kh6 {[%emt 0:00:14]} 70. Kh2 {[%emt 0:00:50]} Rf1 {[%emt 0:00:35]} 71. Kg2 {[%emt 0:00:02]} Ra1 {[%emt 0:00:14]} 72. Rb5 {[%emt 0:00:03]} Rc1 {[%emt 0:00:20]} 73. Rg5 {[%emt 0:00:30]} Ra1 {[%emt 0:00:16]} 74. f4 {[%emt 0:00:30]} Ra2+ {[%emt 0:01:04]} 75. Kh3 {[%emt 0:00:04]} Rf2 {[%emt 0:00:34]} 76. Kg3 {[%emt 0:00:03]} Rf1 {[%emt 0:00:11]} 77. Rc5 {[%emt 0:00:13]} Rg1+ {[%emt 0:00:22]} 78. Kf3 {[%emt 0:00:09]} Rf1+ {[%emt 0:01:10]} 79. Ke3 {[%emt 0:00:16]} Rh1 {[%emt 0:00:12]} 80. Rc8 {[%emt 0:00:03]} Kg7 {[%emt 0:00:12]} 81. Ke4 {[%emt 0:00:14]} Rxh4 {[%emt 0:00:12]} 82. Rc7+ {[%emt 0:00:05]} Kf6 {[%emt 0:00:08]} 1/2-1/2

[Event "ESP-ch Teams Honor 2024"]
[Site "Melilla"]
[Date "2024.10.13"]
[Round "2.7"]
[White "Deac, Bogdan-Daniel"]
[Black "Tabatabaei, M. Amin"]
[Result "1/2-1/2"]
[ECO "D37"]
[WhiteElo "2691"]
[BlackElo "2702"]
[Annotator "TA"]
[PlyCount "110"]
[EventDate "2024.10.11"]
[EventType "team-tourn"]
[EventCountry "ESP"]
[SourceTitle "playchess.com"]
[Source "ChessBase"]
[SourceQuality "1"]
[WhiteTeam "Costa Calida"]
[BlackTeam "Andreu"]
[TimeControl "5400+30"]

{[%evp 10,110,21,0,5,6,16,9,22,18,12,24,5,1,20,0,0,0,0,0,0,0,0,-29,86,0,0,0,0,-12,54,56,54,41,46,12,1,12,36,4,11,21,18,20,20,20,37,22,27,30,25,29,67,67,66,22,22,22,22,22,22,8,67,67,68,68,68,68,68,68,68,68,68,68,68,68,68,68,103,68,103,103,103,103,103,0,0,0,0,0,0,0,0,0,0,0,0,0,0,0,0,0,0]} 1. d4 {[%emt 0:00:03]} Nf6 {[%emt 0:00:28]} 2. c4 {[%emt 0:00:02]} e6 {[%emt 0:00:07]} 3. Nf3 {[%emt 0:00:03]} d5 {[%emt 0:00:06]} 4. Nc3 {[%emt 0:00:06]} dxc4 {[%emt 0:02:11]} 5. e3 {[%emt 0:01:29]} a6 {[%emt 0:00:09]} 6. a4 {[%emt 0:02:05]} b6 {[%emt 0:05:00]} 7. Bxc4 {[%emt 0:05:45]} Bb4 {[%emt 0:00:48]} 8. O-O {[%emt 0:00:17]} Bb7 {[%emt 0:00:43] Inhibits e4.} 9. Qe2 {[%emt 0:05:01]} O-O {[%emt 0:07:33]} 10. Rd1 {[%emt 0:03:45]} Qe7 {[%emt 0:04:39]} 11. Bd3 {[%emt 0:05:13]} c5 {[%emt 0:05:07]} 12. dxc5 {[%emt 0:10:52]} Bxc5 {[%emt 0:01:52]} 13. e4 {[%emt 0:01:24]} Ng4 {[%emt 0:03:14]} 14. Rf1 {[%emt 0:01:42]} Nd7 {[%emt 0:05:37]} 15. Bf4 {[%emt 0:00:33] Against Nge5} Qf6 {[%emt 0:03:06]} 16. Bg3 {[%emt 0:10:15]} (16. Bg5 $5 Qg6 $8 17. Bf4 $11) 16... g5 {[%emt 0:10:36]} (16... Nge5 $11 {keeps the balance.}) 17. Rad1 {[%emt 0:02:29]} ({Better is} 17. a5 $16) 17... Nde5 $11 {[%emt 0:17:02]} 18. Nxe5 {[%emt 0:06:54]} Nxe5 {[%emt 0:00:02]} 19. Bc2 {[%emt 0:00:11]} g4 {[%emt 0:07:17]} (19... a5 $11) 20. Bxe5 $14 {[%emt 0:10:39]} Qxe5 {[%emt 0:00:06]} 21. Qxg4+ {[%emt 0:00:03]} Kh8 {[%emt 0:00:14]} 22. Qg3 {[%emt 0:00:05]} (22. Qh4 {is interesting.} Rac8 23. Rd3 Rg8 24. Rfd1) 22... Qxg3 {[%emt 0:04:08]} 23. hxg3 {[%emt 0:00:04]} Rfd8 {[%emt 0:00:12]} 24. e5 {[%emt 0:11:26]} Bd4 {[%emt 0:02:21]} 25. Rfe1 {[%emt 0:00:13]} Rac8 {[%emt 0:02:22]} 26. Rd3 {[%emt 0:00:27] [#] Strongly threatening Red1.} Bxc3 {[%emt 0:02:44] This pair of bishops is nice.} 27. Rxd8+ {[%emt 0:02:04]} Rxd8 {[%emt 0:00:01]} 28. bxc3 $11 {[%emt 0:00:09][%mdl 4096] Endgame. KRB-KRB} Rd2 {[%emt 0:02:03]} 29. Be4 {[%emt 0:05:44]} Bxe4 {[%emt 0:03:49]} 30. Rxe4 {[%emt 0:00:26] KR-KR} b5 {[%emt 0:00:05]} 31. axb5 {[%emt 0:00:12]} axb5 {[%emt 0:00:01]} 32. Rb4 {[%emt 0:00:14]} Rd5 {[%emt 0:00:44]} 33. f4 {[%emt 0:00:19]} h5 {[%emt 0:00:31]} 34. Kh2 {[%emt 0:00:28][%cal Og3g4]} Kg7 {[%emt 0:00:59]} 35. Kh3 {[%emt 0:00:03]} Kg6 {[%emt 0:01:04]} (35... Rd1 $11 36. Kh2 (36. Rxb5 $2 Rh1#) 36... Rc1) 36. g4 $14 {[%emt 0:00:17]} Rd3+ {[%emt 0:00:24]} 37. g3 {[%emt 0:00:14]} hxg4+ {[%emt 0:00:02]} 38. Kxg4 {[%emt 0:00:04]} Rxc3 39. Rxb5 Ra3 {[%emt 0:00:33]} 40. Rb8 {[%emt 0:00:15]} Kg7 {[%emt 0:00:07]} 41. Kh4 {[%emt 0:00:06]} Rf3 {[%emt 0:00:36]} 42. Ra8 {[%emt 0:00:04]} Rb3 {[%emt 0:01:11]} 43. g4 {[%emt 0:00:44]} Re3 {[%emt 0:00:05]} 44. Rb8 {[%emt 0:00:15]} Re1 {[%emt 0:00:40]} 45. Kg5 {[%emt 0:00:04]} Re2 {[%emt 0:00:10]} 46. Rb5 {[%emt 0:00:05]} Re1 {[%emt 0:00:10]} 47. f5 {[%emt 0:00:15]} (47. Ra5 $16) 47... exf5 $11 {[%emt 0:00:06] The position is equal.} 48. gxf5 {[%emt 0:00:03]} Rxe5 {[%emt 0:00:17]} 49. Rxe5 {[%emt 0:00:03] [#] f6+ would kill now. KR-KP} f6+ {[%emt 0:00:04]} 50. Kf4 {[%emt 0:00:06] Intending Re6 and mate.} fxe5+ {[%emt 0:00:02]} 51. Kxe5 {[%emt 0:00:07] White wants to mate with Ke6.} Kf7 {[%emt 0:00:02]} 52. f6 {[%emt 0:00:08]} Kf8 {[%emt 0:00:03]} 53. Ke6 {[%emt 0:00:05]} Ke8 {[%emt 0:00:02]} 54. f7+ {[%emt 0:00:05]} Kf8 {[%emt 0:00:02]} 55. Ke5 {[%emt 0:00:06] White threatens Ke6 and mate.} Kxf7 {[%emt 0:00:06] Weighted Error Value: White=0.10 (very precise) /Black=0.13 (very precise) .  Mistake:       	White=2     	Black=3      Inaccurate:     	White=5     	Black=3      OK:         	White=21    	Black=19     Best:        	White=3     	Black=4} 1/2-1/2

[Event "ESP-ch Teams Honor 2024"]
[Site "Melilla"]
[Date "2024.10.13"]
[Round "2.8"]
[White "Van Foreest, Jorden"]
[Black "Amin, Bassem"]
[Result "1/2-1/2"]
[ECO "D91"]
[WhiteElo "2697"]
[BlackElo "2636"]
[Annotator "TA"]
[PlyCount "109"]
[EventDate "2024.10.11"]
[EventType "team-tourn"]
[EventCountry "ESP"]
[SourceTitle "playchess.com"]
[Source "ChessBase"]
[SourceQuality "1"]
[WhiteTeam "Andreu"]
[BlackTeam "Costa Calida"]
[TimeControl "5400+30"]

{[%evp 32,109,27,0,6,0,0,-4,0,-2,38,39,41,20,24,29,30,28,34,34,29,30,27,0,0,0,97,91,138,110,114,121,175,70,88,80,87,13,23,15,13,30,45,45,45,22,22,22,27,29,22,22,81,48,48,0,81,81,81,81,81,8,8,8,8,8,8,8,8,8,8,8,8,8,8,0,0,0,0,0]} 1. d4 {[%emt 0:00:11]} Nf6 {[%emt 0:01:26]} 2. c4 {[%emt 0:00:08]} g6 {[%emt 0:00:13]} 3. Nc3 {[%emt 0:00:09]} d5 {[%emt 0:00:10]} 4. Nf3 {[%emt 0:01:13]} Bg7 {[%emt 0:00:10]} 5. Bg5 {[%emt 0:01:58]} Ne4 {[%emt 0:00:54]} 6. Bf4 {[%emt 0:01:15]} O-O {[%emt 0:03:32]} 7. e3 {[%emt 0:00:54]} c5 {[%emt 0:01:01]} 8. cxd5 {[%emt 0:00:17]} Nxc3 {[%emt 0:02:19]} 9. bxc3 {[%emt 0:00:08]} Qxd5 {[%emt 0:02:01]} 10. Be2 {[%emt 0:02:20]} cxd4 {[%emt 0:00:33]} 11. cxd4 {[%emt 0:00:13]} Qa5+ {[%emt 0:00:10]} 12. Qd2 {[%emt 0:01:37]} Nc6 {[%emt 0:00:05]} 13. Qxa5 {[%emt 0:01:34] D80: Grünfeld: Unusual White 4th moves and 4 Bg5.} Nxa5 {[%emt 0:00:03]} 14. h4 {[%emt 0:01:10]} h6 {[%emt 0:01:30]} 15. Bd3 $146 {[%emt 0:06:51]} ({Predecessor:} 15. h5 g5 16. Be5 Be6 17. Kd2 Rfc8 18. Rhc1 Rxc1 19. Kxc1 f6 20. Bg3 Rc8+ 21. Kb2 {0-1 Skatchkov,V (2248)-Wagner,D (2570) Titled Tuesday intern op 11th Oct Late blitz 2022 (2)}) 15... Be6 {[%emt 0:02:57]} 16. Kd2 {[%emt 0:19:59]} Rac8 {[%emt 0:04:35]} 17. Rhb1 {[%emt 0:01:11]} Rfd8 {[%emt 0:04:22]} 18. Rb5 {[%emt 0:03:37]} b6 {[%emt 0:01:06]} 19. Rbb1 {[%emt 0:00:05]} Nc4+ {[%emt 0:11:12]} 20. Ke2 {[%emt 0:00:20]} Bf5 {[%emt 0:30:31]} 21. Bxf5 {[%emt 0:01:26]} gxf5 {[%emt 0:00:02]} 22. h5 {[%emt 0:04:12]} f6 {[%emt 0:03:17]} 23. Rd1 {[%emt 0:01:35]} e5 {[%emt 0:04:49]} 24. Bh2 {[%emt 0:01:33]} Kf7 {[%emt 0:00:24]} 25. Rac1 {[%emt 0:10:41]} Ke6 {[%emt 0:01:28]} 26. Nh4 {[%emt 0:00:47]} Bf8 {[%emt 0:02:17]} 27. f3 {[%emt 0:01:35]} (27. d5+ {simplifies} Rxd5 28. Rxd5 Kxd5 29. Nxf5 b5 30. f3) 27... Ba3 {[%emt 0:05:54]} 28. Rc3 {[%emt 0:02:36]} Nb2 {[%emt 0:06:19] [#]} (28... Rg8 $11) 29. Rdc1 $1 $16 {[%emt 0:06:17]} Rxc3 {[%emt 0:00:27]} ({Black should try} 29... Nc4 30. d5+ Kd7 (30... Kxd5 $2 31. Rd3+ Ke6 32. Rxd8 $18)) 30. Rxc3 $16 {[%emt 0:00:05]} exd4 {[%emt 0:00:25]} 31. exd4 {[%emt 0:00:17]} (31. Rxa3 $2 d3+ $19) 31... Rxd4 {[%emt 0:01:06]} (31... Bb4 $16 32. Rc2 Rxd4) 32. Re3+ {[%emt 0:00:31]} (32. Rxa3 Rxh4 33. Bb8 a5 $11 (33... Rxh5 34. Bxa7 Rg5 35. Kf2 $14)) (32. Rc6+ $18 Kd5 33. Nxf5) 32... Kd5 $14 {[%emt 0:00:22]} 33. Nxf5 {[%emt 0:00:06]} Ra4 {[%emt 0:00:43]} 34. Nxh6 {[%emt 0:16:25]} (34. Re4 $16) 34... Bc5 {[%emt 0:00:24]} 35. Rc3 {[%emt 0:02:11]} Rh4 {[%emt 0:00:11]} (35... Rxa2 $6 36. Rc2 Ke6 37. g4 $16) 36. Ng4 {[%emt 0:00:03]} Ke6 {[%emt 0:00:27]} 37. Rc2 {[%emt 0:03:20]} f5 {[%emt 0:01:36]} 38. Rxb2 {[%emt 0:04:49]} fxg4 {[%emt 0:00:05]} 39. Bb8 {[%emt 0:00:03]} gxf3+ {[%emt 0:01:36]} 40. Kxf3 {[%emt 0:00:07]} Rxh5 {[%emt 0:01:00]} 41. Bxa7 {[%emt 0:00:05]} Bd4 {[%emt 0:03:04]} (41... Rf5+ $11 {remains equal.} 42. Kg4 b5) 42. Rb4 {[%emt 0:00:08]} Bc5 {[%emt 0:00:47]} 43. Rb2 {[%emt 0:01:37]} Bd4 {[%emt 0:00:42]} 44. Rb3 {[%emt 0:01:06]} Rf5+ {[%emt 0:02:18]} 45. Ke4 {[%emt 0:00:15]} Rf2 {[%emt 0:00:13]} 46. a3 {[%emt 0:01:46]} (46. Bxb6 Bxb6 47. Rxb6+ Ke7 $11) (46. Kxd4 $16 Rxa2 47. Rxb6+ Kf5 48. g4+ (48. Rb5+ Kf6 $16) 48... Kxg4 49. Rb7) 46... Rxg2 $1 $11 {[%emt 0:01:39]} ({Don't go for} 46... Rb2 $2 47. Rxb2 Bxb2 48. a4 $18 (48. Bxb6 Bxa3 49. Be3 Bf8 $11)) 47. Kxd4 {[%emt 0:03:13]} Rg4+ {[%emt 0:00:06]} 48. Kc3 {[%emt 0:00:08]} Rg3+ {[%emt 0:00:02]} 49. Kb4 {[%emt 0:00:06]} Rxb3+ {[%emt 0:00:03]} 50. Kxb3 {[%emt 0:00:08]} Kd7 {[%emt 0:00:05]} 51. Kb4 {[%emt 0:00:06]} ({Not} 51. Bxb6 Kd6 52. Ka4 Kc6 $18) 51... Kc7 {[%emt 0:00:14]} 52. Kb5 {[%emt 0:00:04]} Kb7 {[%emt 0:00:03]} 53. a4 {[%emt 0:00:11]} Kxa7 {[%emt 0:00:03]} 54. a5 {[%emt 0:00:04]} bxa5 {[%emt 0:00:07]} 55. Kxa5 1/2-1/2